bitfinex-derivatives/quotes_ETHF0:USTF0_20241027
["timestamp","ask_amount","ask_price","bid_price","bid_amount"]
[1730042544322,1.23588,2497.1,2497.0,0.4009]
[1730042544522,5.84201,2497.1,2496.8,3.2078]
[1730042544725,0.40091,2496.9,2496.8,3.60872]
[1730042545226,1.3004,2497.0,2496.8,3.2078]
[1730042545422,1.3004,2497.0,2496.9,0.40091]
[1730042545423,1.70131,2497.0,2496.9,0.40091]
[1730042549121,1.3004,2497.0,2496.9,0.40091]
[1730042549329,1.723,2497.0,2496.9,0.40091]
[1730042549931,1.723,2497.0,2496.9,0.84041]
[1730042550123,2.1239,2497.0,2496.9,0.84041]
[1730042551529,2.1239,2497.0,2496.9,0.40091]
[1730042557831,3.6164,2497.4,2497.2,0.40085]
[1730042558028,1.64417,2497.3,2497.2,0.40085]
[1730042558228,1.64417,2497.3,2497.2,0.81695]
[1730042562634,0.835,2497.3,2497.2,0.81695]
[1730042563537,1.23585,2497.3,2497.2,0.81695]
[1730042564131,0.835,2497.3,2497.2,0.81695]
[1730042564337,1.23585,2497.3,2497.2,0.81695]
[1730042564736,0.835,2497.3,2497.2,0.81695]
[1730042565333,1.23585,2497.3,2497.2,0.81695]
[1730042565735,0.40084,2497.4,2497.2,0.4161]
[1730042565941,1.23585,2497.3,2497.2,0.81696]
[1730042566133,0.835,2497.3,2497.2,0.81696]
[1730042567434,0.82182,2497.5,2497.2,0.81696]
[1730042567639,0.82182,2497.5,2497.4,0.40083]
[1730042567833,1.65582,2497.5,2497.4,0.40083]
[1730042572639,1.255,2497.5,2497.4,0.40083]
[1730042573437,1.65582,2497.5,2497.4,0.40083]
[1730042591257,1.255,2497.5,2497.4,0.40083]
[1730042591950,0.834,2497.5,2497.4,0.40083]
[1730042592152,0.4415,2497.6,2497.5,0.40082]
[1730042592348,1.2755,2497.6,2497.5,0.40082]
[1730042593451,1.6763,2497.6,2497.5,0.40082]
[1730042593751,5.2795,2497.6,2497.1,4.25719823]
[1730042593960,0.40089,2497.1,2497.0,0.40088]
[1730042594152,1.23489,2497.1,2497.0,0.40088]
[1730042594458,0.40093,2496.9,2496.8,0.40091]
[1730042594648,1.2919,2497.0,2496.7,8.27876675]
[1730042594849,1.2919,2497.0,2496.4,3.2078]
[1730042594850,2.29416,2497.0,2496.4,3.2078]
[1730042595048,0.40095,2496.8,2496.7,0.40093]
[1730042595854,0.40092,2496.9,2496.8,0.40091]
[1730042597157,1.6928,2497.0,2496.9,0.40091]
[1730042597352,1.2919,2497.0,2496.9,0.40091]
[1730042598053,1.6928,2497.0,2496.9,0.40091]
[1730042598252,0.4009,2497.0,2496.9,0.40091]
[1730042598451,0.8202,2497.0,2496.9,0.40091]
[1730042599953,0.4193,2497.0,2496.7,0.8742]
[1730042600161,0.8602,2496.9,2496.4,5.25965823]
[1730042600363,0.8602,2496.9,2496.5,0.4141]
[1730042600558,0.40096,2496.7,2496.6,0.40095]
[1730042604564,0.40096,2496.7,2496.5,0.4141]
[1730042604565,0.40096,2496.6,2496.5,0.81506]
[1730042604763,1.64496,2496.6,2496.5,0.81506]
[1730042604955,1.64496,2496.6,2496.4,3.60878]
[1730042604956,1.244,2496.6,2496.4,3.60878]
[1730042605157,1.26368,2496.5,2496.4,3.60878]
[1730042606757,1.26368,2496.5,2496.4,0.40098]
[1730042623794,0.81778,2496.5,2496.4,0.40098]
[1730042626492,1.65178,2496.5,2496.4,0.40098]
[1730042626893,1.65178,2496.5,2496.4,0.82188]
[1730042633399,1.65178,2496.5,2496.4,0.40098]
[1730042639410,0.40099,2496.4,2496.3,0.401]
[1730042642012,4.0056,2496.4,2495.9,4.25719823]
[1730042642212,0.40106,2496.0,2495.9,4.01996]
[1730042642511,1.23506,2496.0,2495.9,4.01996]
[1730042643207,1.65986,2496.0,2495.9,4.01996]
[1730042644709,1.65986,2496.0,2495.9,3.2078]
[1730042644710,5.66626,2496.0,2495.9,3.2078]
[1730042644916,0.4011,2495.7,2495.6,0.82511]
[1730042645816,0.8448,2495.7,2495.6,0.82511]
[1730042648716,0.8448,2495.7,2495.6,0.424]
[1730042649023,0.40112,2495.6,2495.5,3.2078]
[1730042649215,0.84272,2495.6,2495.5,3.2078]
[1730042651823,0.40114,2495.5,2495.4,1.67424]
[1730042652023,1.23514,2495.5,2495.4,1.67424]
[1730042655020,0.40114,2495.5,2495.4,1.67424]
[1730042655232,0.834,2495.5,2495.4,1.67424]
[1730042656123,0.834,2495.5,2495.4,1.2731]
[1730042656321,0.834,2495.5,2495.4,1.67425]
[1730042660722,0.834,2495.5,2495.4,4.88205]
[1730042664430,0.834,2495.5,2495.4,1.67425]
[1730042667336,0.40112,2495.7,2495.6,0.4011]
[1730042667531,1.23512,2495.7,2495.6,0.4011]
[1730042667730,0.40114,2495.6,2495.5,0.40113]
[1730042667927,1.25734,2495.6,2495.5,0.40113]
[1730042668127,0.8562,2495.6,2495.4,0.8569]
[1730042668326,0.40114,2495.5,2495.4,1.25805]
[1730042668527,1.23514,2495.5,2495.4,1.25805]
[1730042668835,0.40115,2495.4,2495.3,3.60896]
[1730042669034,0.82625,2495.4,2495.3,3.60896]
[1730042669431,4.4323,2495.4,2494.8,1.00311]
[1730042669736,0.40125,2494.8,2494.7,3.2078]
[1730042669936,0.834,2494.8,2494.7,3.60907]
[1730042670339,1.23525,2494.8,2494.7,3.60907]
[1730042670537,0.834,2494.8,2494.7,3.60907]
[1730042670737,0.4251,2495.3,2494.7,7.61787]
[1730042670939,0.4251,2495.3,2495.1,0.40119]
[1730042670940,1.2352,2495.2,2495.1,0.40119]
[1730042671435,1.25158,2495.3,2495.2,0.40119]
[1730042671636,1.6844,2495.3,2495.2,0.40119]
[1730042672232,0.4251,2495.6,2495.4,0.40114]
[1730042672233,0.40114,2495.5,2495.4,0.40114]
[1730042672429,1.67114,2495.5,2495.4,0.40114]
[1730042672830,1.27,2495.5,2495.4,0.40115]
[1730042673728,1.67114,2495.5,2495.4,0.40115]
[1730042674127,0.40116,2495.4,2495.3,0.40115]
[1730042674943,1.27,2495.5,2495.1,3.2078]
[1730042675140,0.40119,2495.2,2495.1,3.60899]
[1730042675439,0.40119,2495.2,2495.1,3.609]
[1730042675637,5.53713399,2495.4,2495.0,0.40121]
[1730042675838,1.65662,2495.1,2495.0,0.40121]
[1730042678237,1.2554,2495.1,2495.0,0.40121]
[1730042678442,1.6566,2495.1,2495.0,0.40121]
[1730042680042,0.40122,2495.0,2494.9,3.60902]
[1730042680237,0.40125,2494.9,2494.8,0.40124]
[1730042680741,4.40925,2494.9,2494.8,0.40124]
[1730042682142,0.40125,2494.9,2494.8,0.40124]
[1730042682537,4.40925,2494.9,2494.8,0.40124]
[1730042682940,0.40127,2494.8,2494.7,0.40125]
[1730042683141,0.82137,2494.8,2494.7,0.40125]
[1730042683345,4.83017,2494.8,2494.7,0.40125]
[1730042683550,8.88081555,2494.8,2494.5,3.2078]
[1730042683844,0.8622,2494.7,2494.5,3.2078]
[1730042684049,0.40128,2494.6,2494.5,3.60908]
[1730042684461,4.41008,2494.6,2494.5,3.60908]
[1730042685251,0.8622,2494.7,2494.5,3.60908]
[1730042685252,1.26347,2494.7,2494.6,0.40128]
[1730042685742,5.27227,2494.7,2494.6,0.40128]
[1730042686452,0.40128,2494.6,2494.5,3.60909]
[1730042686854,4.41008,2494.6,2494.5,3.60909]
[1730042687057,0.40132,2494.5,2494.4,0.40131]
[1730042687252,0.40133,2494.4,2494.3,0.40132]
[1730042687645,1.23533,2494.4,2494.3,0.40132]
[1730042694657,0.834,2494.4,2494.3,0.40132]
[1730042695053,0.8342,2494.5,2494.2,3.6464]
[1730042695354,0.8342,2494.5,2494.4,0.40131]
[1730042695548,1.6682,2494.5,2494.4,0.40131]
[1730042696857,1.2669,2494.5,2494.4,0.40131]
[1730042697055,0.83967,2494.7,2494.6,0.40128]
[1730042697261,1.67367,2494.7,2494.6,0.40128]
[1730042697445,5.68247,2494.7,2494.6,0.40128]
[1730042697859,4.84847,2494.7,2494.6,0.40128]
[1730042698060,5.68247,2494.7,2494.6,0.40128]
[1730042699657,1.67367,2494.7,2494.6,0.40128]
[1730042699862,5.68247,2494.7,2494.6,0.40128]
[1730042700159,0.4384,2494.7,2494.6,0.40128]
[1730042700353,0.834,2494.7,2494.6,0.40128]
[1730042701367,1.23527,2494.7,2494.6,0.40128]
[1730042703977,1.65167,2494.7,2494.6,0.40128]
[1730042707591,1.65167,2494.7,2494.5,1.3053]
[1730042707592,0.40128,2494.6,2494.5,1.70658]
[1730042709287,0.834,2494.7,2494.5,1.3053]
[1730042709490,1.23528,2494.7,2494.6,0.40128]
[1730042711693,0.834,2494.7,2494.6,0.40128]
[1730042712194,1.23527,2494.7,2494.6,0.40128]
[1730042712683,0.834,2494.7,2494.6,0.40128]
[1730042713490,3.2078,2495.3,2494.7,1.00317]
[1730042713707,3.60899,2495.3,2495.2,0.40119]
[1730042713898,1.23519,2495.3,2495.2,0.40119]
[1730042714480,1.41232,2495.6,2495.0,2.25385]
[1730042714685,0.4095,2495.6,2495.1,1.00301]
[1730042714885,0.834,2495.5,2495.1,1.00301]
[1730042715083,0.40117,2495.4,2495.3,0.40116]
[1730042716288,1.23517,2495.4,2495.3,0.40116]
[1730042718293,0.40118,2495.3,2495.2,0.40117]
[1730042718490,0.82978,2495.3,2495.2,0.40117]
[1730042718797,0.4286,2495.3,2495.2,0.40117]
[1730042719196,0.82977,2495.3,2495.2,0.40117]
[1730042721097,0.4286,2495.3,2495.2,0.40117]
[1730042722998,1.23515,2495.4,2495.3,0.40117]
[1730042728795,0.40115,2495.4,2495.3,0.40117]
[1730042728998,1.23415,2495.4,2495.3,0.40117]
[1730042732101,0.833,2495.4,2495.3,0.40117]
[1730042732904,1.23415,2495.4,2495.3,0.40117]
[1730042733808,4.64387,2495.7,2495.4,1.40404]
[1730042733809,0.833,2495.7,2495.4,1.40404]
[1730042734109,0.833,2495.7,2495.6,0.40112]
[1730042734309,4.0652,2496.0,2495.5,0.4463]
[1730042734615,4.0652,2496.0,2495.9,0.40107]
[1730042734810,3.2078,2496.4,2495.8,3.2078]
[1730042735111,1.23401,2496.3,2496.2,0.40101]
[1730042735302,2.07431,2496.3,2496.2,0.40101]
[1730042737412,1.6733,2496.3,2496.2,0.40101]
[1730042738209,1.2619,2496.3,2496.2,0.40101]
[1730042739610,1.66291,2496.3,2496.2,0.40101]
[1730042742710,0.40109,2495.9,2495.8,0.40108]
[1730042742912,0.40109,2495.8,2495.7,0.40109]
[1730042743113,1.23409,2495.8,2495.7,0.40109]
[1730042744016,0.833,2495.8,2495.7,0.40109]
[1730042745521,1.23409,2495.8,2495.7,0.40109]
[1730042745711,0.40112,2495.7,2495.6,0.40111]
[1730042745906,0.82212,2495.7,2495.6,0.40111]
[1730042746212,1.23282,2495.7,2495.6,0.40111]
[1730042747112,0.8317,2495.7,2495.4,0.84924]
[1730042747313,0.40114,2495.5,2495.4,0.40114]
[1730042747513,0.4194,2495.6,2495.3,3.2078]
[1730042747719,0.40115,2495.4,2495.3,3.60895]
[1730042749318,0.40115,2495.5,2495.4,0.40114]
[1730042752213,1.23415,2495.5,2495.4,0.40114]
[1730042752520,0.833,2495.5,2495.4,0.40114]
[1730042753118,1.23414,2495.5,2495.4,0.40114]
[1730042753420,0.833,2495.5,2495.4,0.40114]
[1730042754022,1.23414,2495.5,2495.4,0.40114]
[1730042754723,0.833,2495.5,2495.4,0.40114]
[1730042755323,1.23414,2495.5,2495.4,0.40114]
[1730042756525,0.833,2495.5,2495.4,0.40114]
[1730042757128,1.23414,2495.5,2495.4,0.40114]
[1730042757531,0.833,2495.5,2495.4,0.40114]
[1730042758128,1.23414,2495.5,2495.4,0.40114]
[1730042758324,0.833,2495.5,2495.4,0.40114]
[1730042759626,1.23414,2495.5,2495.4,0.40114]
[1730042761836,0.833,2495.5,2495.4,0.40114]
[1730042762030,1.23414,2495.5,2495.4,0.40114]
[1730042762936,0.40115,2495.4,2495.3,3.2078]
[1730042763133,0.83975,2495.4,2495.3,3.2078]
[1730042763329,0.40123,2495.0,2494.9,0.40122]
[1730042763529,1.23423,2495.0,2494.9,0.40122]
[1730042764833,0.833,2495.0,2494.9,0.40122]
[1730042765336,0.4504,2495.3,2495.2,0.40119]
[1730042765532,0.833,2495.3,2495.2,0.40119]
[1730042766034,0.833,2495.3,2495.2,0.81829]
[1730042766236,0.833,2495.3,2495.2,4.82629]
[1730042766437,0.833,2495.3,2495.2,0.81829]
[1730042766833,0.40115,2495.5,2495.2,0.81829]
[1730042767037,0.40115,2495.5,2495.4,0.40115]
[1730042767239,1.23415,2495.5,2495.4,0.40115]
[1730042769437,0.833,2495.5,2495.4,0.40115]
[1730042770640,1.2538,2495.5,2495.4,0.40115]
[1730042771346,1.65494,2495.5,2495.4,0.40115]
[1730042771638,1.2538,2495.5,2495.4,0.40115]
[1730042773535,1.65494,2495.5,2495.4,0.40115]
[1730042774143,1.2538,2495.5,2495.4,0.40115]
[1730042774534,1.65494,2495.5,2495.4,0.40115]
[1730042775532,1.2538,2495.5,2495.4,0.40115]
[1730042775739,1.65494,2495.5,2495.4,0.40115]
[1730042779539,0.40115,2495.4,2495.3,3.60896]
[1730042779740,0.40115,2495.4,2495.3,0.40116]
[1730042780439,4.0072,2495.4,2495.0,0.4425]
[1730042780637,1.00293,2495.4,2494.8,4.65482]
[1730042780840,0.40123,2495.0,2494.9,0.40122]
[1730042781145,1.23423,2495.0,2494.9,0.40122]
[1730042782545,0.833,2495.0,2494.9,0.40122]
[1730042786647,3.60898,2495.3,2495.2,0.40119]
[1730042786854,0.4263,2495.4,2495.3,0.40117]
[1730042787152,1.2593,2495.4,2495.3,0.40117]
[1730042787756,1.66045,2495.4,2495.3,0.40117]
[1730042790053,2.09405,2495.4,2495.3,0.40117]
[1730042790847,1.6929,2495.4,2495.2,0.4243]
[1730042791044,0.40119,2495.3,2495.2,0.40118]
[1730042796260,1.6929,2495.4,2495.1,0.4333]
[1730042796451,0.40119,2495.2,2495.1,0.83449]
[1730042798456,0.40119,2495.2,2495.1,0.40119]
[1730042801455,0.40122,2495.0,2494.9,1.26312]
[1730042814463,1.26692,2495.1,2495.0,0.40122]
[1730042814964,0.833,2495.1,2495.0,0.40122]
[1730042815172,0.833,2495.1,2495.0,0.81712]
[1730042815570,1.2342,2495.1,2495.0,0.81712]
[1730042818156,1.2342,2495.1,2495.0,0.40122]
[1730042818576,0.40122,2495.0,2494.9,0.8619]
[1730042818770,0.40125,2494.9,2494.8,0.40123]
[1730042818967,0.40125,2494.9,2494.8,0.82013]
[1730042819165,0.40125,2494.9,2494.8,0.82015]
[1730042820369,0.40123,2495.0,2494.9,0.40123]
[1730042821572,1.23423,2495.0,2494.9,0.40123]
[1730042821874,0.40123,2494.9,2494.8,0.82014]
[1730042822571,0.40123,2494.9,2494.8,0.4189]
[1730042822874,0.40123,2494.9,2494.8,0.82015]
[1730042825774,1.2613,2495.0,2494.8,0.4189]
[1730042826070,1.23423,2495.0,2494.9,0.40123]
[1730042828873,0.40123,2494.9,2494.8,0.82013]
[1730042831284,0.82683,2494.9,2494.8,0.82013]
[1730042831977,0.82683,2494.9,2494.8,0.4189]
[1730042832777,0.82683,2494.9,2494.8,0.41729343]
[1730042833293,0.40125,2494.8,2494.7,3.60905]
[1730042833584,0.85315,2494.8,2494.7,3.60905]
[1730042833984,0.85315,2494.8,2494.7,0.40125]
[1730042836080,0.85315,2494.8,2494.7,0.83625]
[1730042843981,0.85315,2494.8,2494.7,0.40125]
[1730042844179,0.85315,2494.8,2494.4,1.05010689]
[1730042844180,5.46386,2494.8,2494.4,1.05010689]
[1730042844486,0.40131,2494.4,2494.3,5.07241689]
[1730042844679,1.23431,2494.4,2494.3,4.02231]
[1730042847289,1.23431,2494.4,2494.3,3.621]
[1730042847989,1.23431,2494.4,2494.3,4.02233]
[1730042850888,1.23431,2494.4,2494.3,3.621]
[1730042851689,1.23431,2494.4,2494.3,4.02233]
[1730042852790,1.23431,2494.4,2494.3,3.621]
[1730042852988,1.23431,2494.4,2494.3,4.02233]
[1730042855293,1.23431,2494.4,2494.3,3.621]
[1730042855891,1.23431,2494.4,2494.3,4.02233]
[1730042856698,1.23431,2494.4,2494.3,0.81453]
[1730042858192,1.23431,2494.4,2494.3,0.4132]
[1730042864201,0.833,2494.4,2494.2,3.2078]
[1730042864403,0.83753,2494.3,2494.2,3.2078]
[1730042867002,0.83753,2494.3,2494.1,0.40136]
[1730042867003,0.40135,2494.2,2494.1,0.40136]
[1730042870196,0.40136,2494.1,2494.0,4.05287]
[1730042870403,0.82216,2494.1,2494.0,4.05287]
[1730042870707,0.82216,2494.1,2494.0,8.06247]
[1730042870902,0.40136,2494.1,2494.0,8.06247]
[1730042873213,0.40136,2494.1,2494.0,4.05287]
[1730042873512,0.40136,2494.1,2494.0,8.06247]
[1730042873712,0.40136,2494.1,2494.0,4.05287]
[1730042875599,0.40136,2494.1,2494.0,3.6515]
[1730042875808,5.06816,2494.3,2493.9,0.4489]
[1730042876102,0.82948,2494.0,2493.9,0.4489]
[1730042876299,0.40139,2493.9,2493.8,0.4168]
[1730042876502,1.64739,2493.9,2493.8,0.4168]
[1730042877401,0.40144,2493.6,2493.5,1.28725]
[1730042880011,0.40144,2493.6,2493.5,0.40145]
[1730042880318,0.4079,2494.1,2493.5,0.40145]
[1730042880319,1.0034,2494.2,2493.5,4.0104]
[1730042880611,0.40142,2493.9,2493.8,0.40139]
[1730042880812,0.40142,2493.9,2493.8,0.40141]
[1730042881211,1.23342,2493.9,2493.8,0.40141]
[1730042882134,3.6528,2494.4,2493.8,4.0096]
[1730042882322,0.40132,2494.5,2494.4,0.4013]
[1730042882512,0.832,2494.5,2494.4,0.40131]
[1730042882717,1.2333,2494.5,2494.4,0.40131]
[1730042882924,0.832,2494.5,2494.4,0.40131]
[1730042884020,0.82529,2494.6,2494.5,0.4013]
[1730042884224,0.832,2494.6,2494.3,1.00333]
[1730042884417,1.23328,2494.6,2494.5,0.4013]
[1730042888118,0.832,2494.6,2494.5,0.4013]
[1730042888720,1.23328,2494.6,2494.5,0.4013]
[1730042890823,0.40132,2494.5,2494.4,0.4013]
[1730042891323,0.40133,2494.4,2494.3,0.40131]
[1730042891821,0.832,2494.6,2494.2,0.8417]
[1730042892033,0.40132,2494.5,2494.4,0.4013]
[1730042893122,0.832,2494.6,2494.2,0.8417]
[1730042893323,0.82633,2494.4,2494.3,0.40132]
[1730042895720,1.65833,2494.4,2494.3,0.40132]
[1730042900734,1.257,2494.4,2494.2,0.4155]
[1730042901029,0.8817,2494.3,2494.0,0.40137]
[1730042901231,0.40138,2494.1,2494.0,0.82117]
[1730042901730,0.40138,2494.1,2494.0,0.4198]
[1730042901932,0.40141,2493.9,2493.8,0.8212]
[1730042902131,1.23341,2493.9,2493.8,0.8212]
[1730042902527,0.40141,2493.8,2493.7,0.40141]
[1730042903338,1.6975,2493.9,2493.5,0.4476]
[1730042903529,0.40144,2493.7,2493.6,0.40143]
[1730042903732,2.70102,2493.9,2493.5,0.4476]
[1730042904039,2.70102,2493.9,2493.5,0.84904]
[1730042904040,0.40144,2493.6,2493.5,0.84904]
[1730042907131,0.40144,2493.6,2493.5,0.84906]
[1730042909839,2.70101,2493.9,2493.5,0.4476]
[1730042910145,2.70101,2493.9,2493.6,0.40142]
[1730042910146,0.40144,2493.7,2493.6,0.40142]
[1730042914245,0.40144,2493.6,2493.5,0.84904]
[1730042914546,0.84534,2493.6,2493.5,0.84904]
[1730042914741,0.84534,2493.6,2493.5,0.40144]
[1730042927855,0.40144,2493.7,2493.6,0.40142]
[1730042930873,0.40142,2493.8,2493.7,0.40141]
[1730042937080,1.23342,2493.8,2493.7,0.82141]
[1730042939477,1.23342,2493.8,2493.7,0.42]
[1730042940184,0.40144,2493.6,2493.5,3.2078]
[1730042940385,0.40144,2493.6,2493.5,0.40146]
[1730042942489,0.832,2493.8,2493.5,1.00365]
[1730042942680,0.40141,2493.8,2493.7,0.40143]
[1730042942985,0.832,2493.8,2493.6,1.4124]
[1730042943190,0.832,2493.8,2493.7,0.40143]
[1730042943691,1.23341,2493.8,2493.7,4.83473]
[1730042945594,0.40141,2493.8,2493.7,4.83473]
[1730042945884,1.23341,2493.8,2493.7,4.83473]
[1730042951288,9.05376,2493.8,2493.3,1.05011409]
[1730042951503,9.05376,2493.8,2492.9,2.62528523]
[1730042951504,0.40154,2493.0,2492.9,1.88856409]
[1730042951690,1.00369,2493.4,2493.3,0.40149]
[1730042951691,0.40148,2493.4,2493.3,0.40149]
[1730042951894,1.23348,2493.4,2493.3,0.40149]
[1730042952093,0.832,2493.4,2493.3,0.40149]
[1730042952292,1.23347,2493.4,2493.3,0.40149]
[1730042952592,0.40149,2493.3,2493.2,0.8384]
[1730042952792,1.23349,2493.4,2493.3,0.40149]
[1730042953792,0.4186,2493.6,2493.5,0.40146]
[1730042953994,1.65204,2493.6,2493.5,0.40146]
[1730042954488,1.65204,2493.6,2493.5,0.8694]
[1730042954685,1.65204,2493.6,2493.5,1.27086]
[1730042955098,1.65204,2493.6,2493.5,0.8694]
[1730042955399,1.65204,2493.6,2493.5,1.27086]
[1730042958999,0.8327,2493.7,2493.5,1.27086]
[1730042959000,1.23414,2493.7,2493.6,0.40144]
[1730042959201,1.65564,2493.7,2493.6,0.40144]
[1730042960198,0.40144,2493.6,2493.5,1.69954]
[1730042960792,1.65564,2493.7,2493.6,0.40144]
[1730042964304,0.832,2493.7,2493.6,0.40144]
[1730042964491,0.832,2493.7,2493.6,4.41184]
[1730042965196,1.23343,2493.7,2493.6,0.40144]
[1730042968900,0.832,2493.7,2493.6,0.40144]
[1730042969112,1.23343,2493.7,2493.6,0.40144]
[1730042970506,0.40143,2493.7,2493.6,0.40144]
[1730042970707,1.23343,2493.7,2493.6,0.40144]
[1730042974515,0.832,2493.8,2493.7,0.40143]
[1730042974711,0.832,2493.8,2493.7,4.41183]
[1730042975011,1.69009,2494.0,2493.9,0.40139]
[1730042975217,2.52209,2494.0,2493.9,0.40139]
[1730042975605,0.832,2494.0,2493.9,4.82009]
[1730042976106,0.832,2494.0,2493.9,5.27179]
[1730042978315,1.25625,2494.2,2493.9,4.8704]
[1730042978316,0.8549,2494.2,2493.9,4.8704]
[1730042978508,0.8549,2494.2,2494.0,0.40136]
[1730042978509,1.23337,2494.1,2494.0,0.40136]
[1730042988223,0.832,2494.1,2494.0,0.40136]
[1730042988614,1.23336,2494.1,2494.0,0.40136]
[1730042990928,0.832,2494.1,2494.0,0.40136]
[1730042991323,0.8549,2494.2,2493.9,4.0686]
[1730042991623,1.6869,2494.2,2494.1,0.40136]
[1730042991826,2.08825,2494.2,2494.1,0.40136]
[1730042992022,0.4387,2494.3,2494.2,0.40135]
[1730042992224,1.00325,2494.6,2494.4,0.40131]
[1730042992225,1.25421,2494.5,2494.4,0.40131]
[1730042992426,1.68761,2494.5,2494.4,0.40131]
[1730042992728,1.25541,2494.5,2494.4,0.40131]
[1730042992922,0.8541,2494.5,2494.4,0.40131]
[1730042993121,1.2554,2494.5,2494.4,0.40131]
[1730043000636,1.23329,2494.6,2494.3,0.4455]
[1730043000838,1.23329,2494.6,2494.5,0.4013]
[1730043001230,1.23329,2494.6,2494.5,0.8412]
[1730043003646,1.23328,2494.6,2494.5,0.8412]
[1730043003947,0.832,2494.6,2494.5,0.8412]
[1730043004243,1.23328,2494.6,2494.5,0.8412]
[1730043011453,1.66927,2494.7,2494.6,0.40128]
[1730043011752,2.50027,2494.7,2494.6,0.40128]
[1730043016753,2.099,2494.7,2494.5,0.4399]
[1730043017054,2.099,2494.7,2494.3,1.44881]
[1730043017055,1.00321,2494.6,2494.3,0.4455]
[1730043017251,0.40131,2494.4,2494.3,0.84681]
[1730043017452,0.40131,2494.5,2494.4,0.4013]
[1730043017643,0.4013,2494.6,2494.5,0.40128]
[1730043018456,0.4013,2494.5,2494.4,0.8517]
[1730043019848,0.4013,2494.5,2494.4,0.4013]
[1730043020042,0.40131,2494.4,2494.3,3.60911]
[1730043020247,0.81701,2494.4,2494.3,3.60911]
[1730043020958,0.81701,2494.4,2494.3,3.60913]
[1730043021446,0.81701,2494.4,2494.3,0.40133]
[1730043023551,0.40134,2494.3,2494.1,0.82215]
[1730043023757,0.40134,2494.3,2494.2,0.40135]
[1730043025362,0.83384,2494.3,2494.2,0.40135]
[1730043028760,0.40135,2494.2,2494.1,4.02995]
[1730043030456,0.40135,2494.2,2494.1,0.82215]
[1730043030959,0.40135,2494.2,2494.1,4.02995]
[1730043031462,0.40135,2494.2,2494.1,0.82215]
[1730043031866,0.40135,2494.2,2494.1,4.02995]
[1730043033770,1.7127,2494.3,2494.0,1.05089938]
[1730043033975,0.4241,2494.1,2493.8,3.2078]
[1730043034161,0.40139,2493.9,2493.8,3.60919]
[1730043034866,0.40139,2493.9,2493.8,0.40139]
[1730043035762,0.40141,2493.8,2493.7,4.0328]
[1730043035961,1.65651,2493.8,2493.7,4.0328]
[1730043040075,1.65651,2493.8,2493.7,0.825]
[1730043044272,1.2551,2493.8,2493.7,0.825]
[1730043044568,0.831,2493.8,2493.7,0.825]
[1730043044977,1.23241,2493.8,2493.7,0.825]
[1730043047477,0.831,2493.8,2493.7,0.825]
[1730043048465,1.23241,2493.8,2493.7,0.825]
[1730043049471,0.831,2493.8,2493.7,0.825]
[1730043049666,1.23241,2493.8,2493.7,0.825]
[1730043056773,1.23241,2493.8,2493.7,0.4014]
[1730043056979,1.67511,2493.8,2493.7,0.4014]
[1730043057572,0.40144,2493.7,2493.6,0.40143]
[1730043057868,0.81714,2493.7,2493.6,0.40143]
[1730043058270,0.40144,2493.6,2493.4,0.4235]
[1730043058474,4.4261,2493.7,2493.4,0.82497]
[1730043058475,0.85156,2493.5,2493.4,0.82497]
[1730043060277,0.40145,2493.6,2493.5,0.40144]
[1730043060677,0.40145,2493.6,2493.5,0.81794]
[1730043061672,0.81714,2493.7,2493.6,0.40144]
[1730043063379,0.81714,2493.7,2493.6,3.60924]
[1730043064181,0.40142,2493.8,2493.7,0.40141]
[1730043064480,0.331,2493.8,2493.7,0.40143]
[1730043065184,0.4014,2493.9,2493.8,0.40141]
[1730043065385,1.2324,2493.9,2493.8,0.40141]
[1730043067580,1.2324,2493.9,2493.7,0.40141]
[1730043067581,0.40143,2493.8,2493.7,0.40141]
[1730043067780,0.83723,2493.8,2493.7,0.40141]
[1730043067977,1.67243,2493.8,2493.7,0.40141]
[1730043068182,1.24673,2493.8,2493.7,0.40141]
[1730043068384,0.831,2493.9,2493.8,0.40141]
[1730043068976,1.23239,2493.9,2493.8,0.40141]
[1730043069171,0.831,2493.9,2493.8,0.40141]
[1730043069584,1.23239,2493.9,2493.8,0.40141]
[1730043070172,0.4358,2494.1,2493.6,3.2078]
[1730043070376,0.40138,2494.1,2494.0,0.40138]
[1730043070591,1.23238,2494.1,2494.0,0.40138]
[1730043072883,1.23238,2494.1,2493.9,0.8651]
[1730043072884,0.40138,2494.0,2493.9,1.26649]
[1730043073085,0.40138,2494.0,2493.9,0.85159]
[1730043074583,0.831,2494.1,2493.8,0.84301]
[1730043074891,0.831,2494.1,2493.6,4.69129938]
[1730043074892,0.40143,2493.8,2493.7,0.40142]
[1730043075286,0.83953,2493.8,2493.7,0.40143]
[1730043075591,1.28543,2493.8,2493.7,0.40143]
[1730043078189,4.8944,2493.8,2493.4,1.05089938]
[1730043078390,0.40147,2493.5,2493.4,0.40146]
[1730043083194,1.2476,2493.6,2493.3,3.6358]
[1730043083392,0.81087,2493.4,2493.3,4.03728]
[1730043083790,0.81087,2493.4,2493.3,3.6358]
[1730043084093,0.81087,2493.4,2493.3,4.03729]
[1730043084290,0.81087,2493.4,2493.3,3.60929]